fUSD/lending_fUSD_20240919
["ID","MTS","AMOUNT","RATE_DAILY","PERIOD"]
[338529118,1726721373927,-2447.39,0.00012998,2]
[338529119,1726721373948,-500.0,0.00012998,2]
[338529120,1726721373968,-527.284761,0.00012998,2]
[338529121,1726721373990,-500.0,0.00012998,2]
[338529122,1726721374011,-500.0,0.00012998,2]
[338529123,1726721374032,-527.284761,0.00012998,2]
[338529124,1726721374054,-500.0,0.00012998,2]
[338529125,1726721374074,-1390.48,0.00012998,2]
[338529126,1726721374094,-665.9,0.00012998,2]
[338529127,1726721374116,-500.0,0.00012998,2]
[338529128,1726721374137,-500.0,0.00012998,2]
[338529129,1726721374160,-500.0,0.00012998,2]
[338529130,1726721374181,-552.52,0.00012998,2]
[338529131,1726721374202,-1747.39,0.00012998,2]
[338529132,1726721374223,-151.0,0.00012998,2]
[338529133,1726721374244,-500.0,0.00012998,2]
[338529134,1726721374265,-151.0,0.00012998,2]
[338529135,1726721374286,-500.0,0.00012998,2]
[338529136,1726721374306,-538.3,0.00012998,2]
[338529137,1726721374326,-500.0,0.00012998,2]
[338529138,1726721374347,-2036.19,0.00012998,2]
[338529139,1726721374367,-500.0,0.00012998,2]
[338529140,1726721374388,-820.59,0.00012998,2]
[338529141,1726721374416,-500.0,0.00012998,2]
[338529142,1726721374437,-500.0,0.00012998,2]
[338529143,1726721374459,-151.0,0.00012998,2]
[338529144,1726721374480,-500.0,0.00012998,2]
[338529145,1726721374501,-151.0,0.00012998,2]
[338529146,1726721374522,-2577.48,0.00012998,2]
[338529147,1726721374543,-500.0,0.00012998,2]
[338529148,1726721374563,-500.0,0.00012998,2]
[338529149,1726721374584,-500.0,0.00012998,2]
[338529150,1726721374605,-940.21,0.00012998,2]
[338529151,1726721374626,-500.0,0.00012998,2]
[338529152,1726721374646,-500.0,0.00012998,2]
[338529153,1726721374668,-500.0,0.00012998,2]
[338529154,1726721374689,-535.641178,0.00012998,2]
[338529155,1726721374711,-4295.5,0.00012998,2]
[338529156,1726721374731,-505.219601,0.00012998,2]
[338529157,1726721374752,-535.641178,0.00012998,2]
[338529158,1726721374772,-151.0,0.00012998,2]
[338529159,1726721374793,-500.0,0.00012998,2]
[338529160,1726721374814,-2214.16,0.00012998,2]
[338529161,1726721374838,-505.219601,0.00012998,2]
[338529162,1726721374858,-804.83,0.00012998,2]
[338529163,1726721374880,-151.0,0.00012998,2]
[338529164,1726721374902,-273.396864,0.00012998,2]
[338529165,1726721374922,-151.0,0.00012998,2]
[338529166,1726721374941,-500.0,0.00012998,2]
[338529167,1726721374960,-273.396864,0.00012998,2]
[338529168,1726721374981,-5318.52,0.00012998,2]
[338529169,1726721375001,-2948.94,0.00012998,2]
[338529170,1726721375022,-500.0,0.00012998,2]
[338529171,1726721375042,-883.11,0.00012998,2]
[338529172,1726721375063,-2430.05,0.00012998,2]
[338529173,1726721375084,-1347.59,0.00012998,2]
[338529174,1726721375105,-500.0,0.00012998,2]
[338529175,1726721375127,-151.0,0.00012998,2]
[338529176,1726721375147,-500.0,0.00012998,2]
[338529177,1726721375170,-151.0,0.00012998,2]
[338529178,1726721375192,-1784.36,0.00012998,2]
[338529179,1726721375213,-543.65,0.00012998,2]
[338529180,1726721375234,-151.0,0.00012998,2]
[338529181,1726721375254,-284.323962,0.00012998,2]
[338529182,1726721375276,-500.0,0.00012998,2]
[338529183,1726721375296,-4898.56,0.00012998,2]
[338529184,1726721375316,-5474.71,0.00012998,2]
[338529185,1726721375337,-151.0,0.00012998,2]
[338529186,1726721375358,-151.0,0.00012998,2]
[338529187,1726721375379,-500.0,0.00012998,2]
[338529188,1726721375399,-3076.01,0.00012998,2]
[338529189,1726721375420,-1838.4,0.00012998,2]
[338529190,1726721375440,-977.23503718,0.00012998,2]
[338529191,1726721375460,-176.22483715,0.00012999,2]
[338529192,1726721375480,-355.04888386,0.00012999,2]
[338529193,1726721375500,-500.0,0.00012999,2]
[338529194,1726721375520,-960.39,0.00012999,2]
[338529195,1726721375541,-511.04895128,0.00012999,2]
[338529196,1726721375560,-500.0,0.00012999,2]
[338529197,1726721375581,-1457.88,0.00012999,2]
[338529198,1726721375601,-1370.68,0.00012999,2]
[338529199,1726721375622,-500.0,0.00012999,2]
[338529200,1726721375641,-500.0,0.00012999,2]
[338529201,1726721375664,-1465.29,0.00012999,2]
[338529202,1726721375684,-1533.0,0.00012999,2]
[338529203,1726721375705,-1173.04,0.00012999,2]
[338529204,1726721375727,-554.01,0.00012999,2]
[338529205,1726721375748,-500.0,0.00012999,2]
[338529206,1726721375768,-727.95,0.00012999,2]
[338529207,1726721375788,-500.0,0.00012999,2]
[338529208,1726721375808,-500.0,0.00012999,2]
[338529209,1726721375832,-500.0,0.00012999,2]
[338529210,1726721375852,-500.0,0.00012999,2]
[338529211,1726721375872,-500.0,0.00012999,2]
[338529212,1726721375893,-500.0,0.00012999,2]
[338529213,1726721375914,-524.98,0.00012999,2]
[338529214,1726721375936,-500.0,0.00012999,2]
[338529215,1726721375956,-890.61,0.00012999,2]
[338529216,1726721375977,-750.88,0.00012999,2]
[338529217,1726721375997,-150.0,0.00012999,2]
[338529218,1726721376018,-500.0,0.00012999,2]
[338529219,1726721376038,-500.0,0.00012999,2]
[338529220,1726721376058,-857.99,0.00012999,2]
[338529221,1726721376078,-500.0,0.00012999,2]
[338529222,1726721376098,-651.41,0.00012999,2]
[338529223,1726721376119,-714.27,0.00012999,2]
[338529224,1726721376139,-1246.84,0.00012999,2]
[338529225,1726721376161,-1875.92,0.00012999,2]
[338529226,1726721376181,-580.24,0.00012999,2]
[338529227,1726721376204,-500.0,0.00012999,2]
[338529228,1726721376224,-1045.57,0.00012999,2]
[338529229,1726721376244,-500.0,0.00012999,2]
[338529230,1726721376265,-500.0,0.00012999,2]
[338529231,1726721376286,-1994.98,0.00012999,2]
[338529232,1726721376307,-500.0,0.00012999,2]
[338529233,1726721376329,-500.0,0.00012999,2]
[338529234,1726721376349,-431.13118448,0.00012999,2]
[338529235,1726721376369,-1444.54,0.00012999,2]
[338529236,1726721376390,-500.0,0.00012999,2]
[338529237,1726721376411,-500.0,0.00012999,2]
[338529238,1726721376432,-500.0,0.00012999,2]
[338529239,1726721376452,-885.15,0.00012999,2]
[338529240,1726721376472,-882.5,0.00012999,2]
[338529241,1726721376493,-500.0,0.00012999,2]
[338529242,1726721376738,-1126.2,0.00012999,2]
[338529243,1726721376765,-1036.13,0.00012999,2]
[338529244,1726721376786,-500.0,0.00012999,2]
[338529245,1726721376809,-1210.41,0.00012999,2]
[338529246,1726721376834,-500.0,0.00012999,2]
[338529247,1726721376856,-721.93,0.00012999,2]
[338529248,1726721376877,-500.0,0.00012999,2]
[338529249,1726721376899,-890.07,0.00012999,2]
[338529250,1726721376921,-500.0,0.00012999,2]
[338529251,1726721376941,-500.0,0.00012999,2]
[338529252,1726721376961,-500.0,0.00012999,2]
[338529253,1726721376982,-500.0,0.00012999,2]
[338529254,1726721377002,-531.95,0.00012999,2]
[338529255,1726721377023,-847.94,0.00012999,2]
[338529256,1726721377044,-500.0,0.00012999,2]
[338529257,1726721377064,-500.0,0.00012999,2]
[338529258,1726721377084,-500.0,0.00012999,2]
[338529259,1726721377104,-1247.13,0.00012999,2]
[338529260,1726721377124,-966.21,0.00012999,2]
[338529261,1726721377144,-500.0,0.00012999,2]
[338529262,1726721377164,-500.0,0.00012999,2]
[338529263,1726721377184,-1171.32,0.00012999,2]
[338529264,1726721377203,-500.0,0.00012999,2]
[338529265,1726721377222,-500.0,0.00012999,2]
[338529266,1726721377242,-500.0,0.00012999,2]
[338529267,1726721377262,-1014.34,0.00012999,2]
[338529268,1726721377281,-500.0,0.00012999,2]
[338529269,1726721377299,-500.0,0.00012999,2]
[338529270,1726721377319,-708.48,0.00012999,2]
[338529271,1726721377337,-500.0,0.00012999,2]
[338529272,1726721377356,-500.0,0.00012999,2]
[338529273,1726721377378,-1077.73,0.00012999,2]
[338529274,1726721377398,-500.0,0.00012999,2]
[338529275,1726721377419,-500.0,0.00012999,2]
[338529276,1726721377439,-923.6,0.00012999,2]
[338529277,1726721377459,-500.0,0.00012999,2]
[338529278,1726721377482,-500.0,0.00012999,2]
[338529279,1726721377502,-500.0,0.00012999,2]
[338529280,1726721377522,-500.0,0.00012999,2]
[338529281,1726721377541,-588.88,0.00012999,2]
[338529282,1726721377561,-1256.87,0.00012999,2]
[338529283,1726721377581,-620.25,0.00012999,2]
[338529284,1726721377601,-500.0,0.00012999,2]
[338529285,1726721377622,-1477.36,0.00012999,2]
[338529286,1726721377642,-500.0,0.00012999,2]
[338529287,1726721377662,-1451.44,0.00012999,2]
[338529288,1726721377682,-500.0,0.00012999,2]
[338529289,1726721377703,-500.0,0.00012999,2]
[338529290,1726721377723,-1352.1,0.00012999,2]
[338529291,1726721377743,-792.65,0.00012999,2]
[338529292,1726721377764,-2085.39,0.00012999,2]
[338529293,1726721377784,-1403.01,0.00012999,2]
[338529294,1726721377803,-500.0,0.00012999,2]
[338529295,1726721377827,-500.0,0.00012999,2]
[338529296,1726721377848,-1125.57,0.00012999,2]
[338529297,1726721377868,-765.0,0.00012999,2]
[338529298,1726721377891,-500.0,0.00012999,2]
[338529299,1726721377912,-500.0,0.00012999,2]
[338529300,1726721377932,-1578.28,0.00012999,2]
[338529301,1726721377952,-500.0,0.00012999,2]
[338529302,1726721377972,-707.51,0.00012999,2]
[338529303,1726721377993,-5409.93,0.00012999,2]
[338529304,1726721378013,-500.0,0.00012999,2]
[338529305,1726721378034,-1491.79,0.00012999,2]
[338529306,1726721378055,-272.6557639,0.00012999,2]
[338529307,1726721378076,-500.0,0.00012999,2]
[338529308,1726721378096,-500.0,0.00012999,2]
[338529309,1726721378116,-500.0,0.00012999,2]
[338529310,1726721378142,-496.20752204,0.00012999,2]
[338529311,1726721378163,-1213.31,0.00012999,2]
[338529312,1726721378183,-850.21,0.00012999,2]
[338529313,1726721378207,-500.0,0.00012999,2]
[338529314,1726721378227,-500.0,0.00012999,2]
[338529315,1726721378248,-151.512935,0.00012999,2]
[338529316,1726721378268,-500.0,0.00012999,2]
[338529317,1726721378288,-500.0,0.00012999,2]
[338529318,1726721378308,-500.0,0.00012999,2]
[338529319,1726721378329,-654.46,0.00012999,2]
[338529320,1726721378349,-500.0,0.00012999,2]
[338529321,1726721378371,-996.31,0.00012999,2]
[338529322,1726721378391,-583.16,0.00012999,2]
[338529323,1726721378419,-500.0,0.00012999,2]
[338529324,1726721378440,-500.0,0.00012999,2]
[338529325,1726721378460,-2016.53,0.00012999,2]
[338529326,1726721378483,-1765.57,0.00012999,2]
[338529327,1726721378502,-3769.71,0.00012999,2]
[338529328,1726721378523,-723.35,0.00012999,2]
[338529329,1726721378544,-398.937309,0.00012999,2]
[338529330,1726721378564,-500.0,0.00012999,2]
[338529331,1726721378584,-1723.23,0.00012999,2]
[338529332,1726721378605,-398.937309,0.00012999,2]
[338529333,1726721378625,-2314.75,0.00012999,2]
[338529334,1726721378646,-151.0,0.00012999,2]
[338529335,1726721378668,-500.0,0.00012999,2]
[338529336,1726721378689,-3385.62,0.00012999,2]
[338529337,1726721378710,-657.41,0.00012999,2]
[338529338,1726721378731,-1344.97,0.00012999,2]
[338529339,1726721378751,-151.533641,0.00012999,2]
[338529340,1726721378772,-151.0,0.00012999,2]
[338529341,1726721378793,-500.0,0.00012999,2]
[338529342,1726721378815,-500.0,0.00012999,2]
[338529343,1726721378837,-151.0,0.00012999,2]
[338529344,1726721378857,-876.05,0.00012999,2]
[338529345,1726721378878,-3054.84,0.00012999,2]
[338529346,1726721378899,-2920.43,0.00012999,2]
[338529347,1726721378922,-500.0,0.00012999,2]
[338529348,1726721378943,-500.0,0.00012999,2]
[338529349,1726721378965,-500.0,0.00012999,2]
[338529350,1726721378986,-2000.0,0.00012999,2]
[338529351,1726721379007,-1473.47,0.00012999,2]
[338529352,1726721379027,-500.0,0.00012999,2]
[338529353,1726721379047,-200.0,0.00012999,2]
[338529354,1726721379067,-500.0,0.00012999,2]
[338529355,1726721379088,-981.87,0.00012999,2]
[338529356,1726721379108,-500.0,0.00012999,2]
[338529357,1726721379128,-500.0,0.00012999,2]
[338529358,1726721379149,-601.13,0.00012999,2]
[338529359,1726721379171,-500.0,0.00012999,2]
[338529360,1726721379191,-1313.14,0.00012999,2]
[338529361,1726721379210,-721.12,0.00012999,2]
[338529362,1726721379230,-151.0,0.00012999,2]
[338529363,1726721379250,-151.0,0.00012999,2]
[338529364,1726721379270,-791.53,0.00012999,2]
[338529365,1726721379290,-151.0,0.00012999,2]
[338529366,1726721379311,-151.0,0.00012999,2]
[338529367,1726721379331,-3212.43,0.00012999,2]
[338529368,1726721379351,-151.0,0.00012999,2]
[338529369,1726721379372,-151.0,0.00012999,2]
[338529370,1726721379392,-500.0,0.00012999,2]
[338529371,1726721379414,-500.0,0.00012999,2]
[338529372,1726721379434,-500.0,0.00012999,2]
[338529373,1726721379454,-500.0,0.00012999,2]
[338529374,1726721379473,-309.53117867,0.00012999,2]
[338529375,1726721379498,-3182.69,0.00012999,2]
[338529376,1726721379518,-500.0,0.00012999,2]
[338529377,1726721379538,-1032.67,0.00012999,2]
[338529378,1726721379559,-1692.84,0.00012999,2]
[338529379,1726721379581,-500.0,0.00012999,2]
[338529380,1726721379601,-500.0,0.00012999,2]
[338529381,1726721379626,-500.0,0.00012999,2]
[338529382,1726721379647,-500.0,0.00012999,2]
[338529383,1726721379668,-3156.33,0.00012999,2]
[338529384,1726721379689,-151.0,0.00012999,2]
[338529385,1726721379710,-151.0,0.00012999,2]
[338529386,1726721379730,-627.5,0.00012999,2]
[338529387,1726721379751,-1000.0,0.00012999,2]
[338529388,1726721379770,-151.0,0.00012999,2]
[338529389,1726721379790,-151.0,0.00012999,2]
[338529390,1726721379810,-773.4,0.00012999,2]
[338529391,1726721379834,-500.0,0.00012999,2]
[338529392,1726721379854,-860.0,0.00012999,2]
[338529393,1726721379875,-636.75,0.00012999,2]
[338529394,1726721379897,-500.0,0.00012999,2]
[338529395,1726721379918,-355.115025,0.00012999,2]
[338529396,1726721379939,-355.115025,0.00012999,2]
[338529397,1726721379959,-500.0,0.00012999,2]
[338529398,1726721379979,-2712.97,0.00012999,2]
[338529399,1726721380000,-355.115025,0.00012999,2]
[338529400,1726721380020,-500.0,0.00012999,2]
[338529401,1726721380041,-355.115025,0.00012999,2]
[338529402,1726721380061,-1111.86,0.00012999,2]
[338529403,1726721380081,-467.96141279,0.00012999,2]
[338529404,1726721380101,-500.0,0.00012999,2]
[338529405,1726721380122,-1757.75,0.00012999,2]
[338529406,1726721380142,-1574.06,0.00012999,2]
[338529407,1726721380164,-1369.89,0.00012999,2]
[338529408,1726721380184,-500.0,0.00012999,2]
[338529409,1726721380204,-1420.65,0.00012999,2]
[338529410,1726721380224,-535.86,0.00012999,2]
[338529411,1726721380244,-500.0,0.00012999,2]
[338529412,1726721380264,-151.0,0.00012999,2]
[338529413,1726721380284,-151.0,0.00012999,2]
[338529414,1726721380304,-500.0,0.00012999,2]
[338529415,1726721380324,-630.25,0.00012999,2]
[338529416,1726721380344,-500.0,0.00012999,2]
[338529417,1726721380364,-633.69,0.00012999,2]
[338529418,1726721380384,-1346.96,0.00012999,2]
[338529419,1726721380404,-500.0,0.00012999,2]
[338529420,1726721380425,-500.0,0.00012999,2]
[338529421,1726721380446,-1154.06,0.00012999,2]
[338529422,1726721380682,-500.0,0.00012999,2]
[338529423,1726721380705,-996.69,0.00012999,2]
[338529424,1726721380726,-500.0,0.00012999,2]
[338529425,1726721380748,-500.0,0.00012999,2]
[338529426,1726721380769,-500.0,0.00012999,2]
[338529427,1726721380789,-500.0,0.00012999,2]
[338529428,1726721380810,-500.0,0.00012999,2]
[338529429,1726721380835,-1532.28,0.00012999,2]
[338529430,1726721380855,-861.43,0.00012999,2]
[338529431,1726721380876,-929.8,0.00012999,2]
[338529432,1726721380898,-1992.79,0.00012999,2]
[338529433,1726721380920,-1463.32,0.00012999,2]
[338529434,1726721380941,-500.0,0.00012999,2]
[338529435,1726721380963,-500.0,0.00012999,2]
[338529436,1726721380984,-1543.93,0.00012999,2]
[338529437,1726721381004,-500.0,0.00012999,2]
[338529438,1726721381024,-500.0,0.00012999,2]
[338529439,1726721381045,-161.62503422,0.00012999,2]
[338529440,1726721381066,-708.794204,0.00012999,2]
[338529441,1726721381087,-708.794204,0.00012999,2]
[338529442,1726721381108,-708.794204,0.00012999,2]
[338529443,1726721381129,-500.0,0.00012999,2]
[338529444,1726721381149,-500.0,0.00012999,2]
[338529445,1726721381170,-2846.54,0.00012999,2]
[338529446,1726721381192,-708.794204,0.00012999,2]
[338529447,1726721381212,-708.794204,0.00012999,2]
[338529448,1726721381233,-708.794204,0.00012999,2]
[338529449,1726721381253,-500.0,0.00012999,2]
[338529450,1726721381273,-500.0,0.00012999,2]
[338529451,1726721381294,-500.0,0.00012999,2]
[338529452,1726721381314,-3862.97,0.00012999,2]
[338529453,1726721381334,-3753.39,0.00012999,2]
[338529454,1726721381354,-1086.72,0.00012999,2]
[338529455,1726721381374,-1858.44,0.00012999,2]
[338529456,1726721381393,-500.0,0.00012999,2]
[338529457,1726721381419,-2907.25,0.00012999,2]
[338529458,1726721381440,-3373.08,0.00012999,2]
[338529459,1726721381460,-182.0,0.00012999,2]
[338529460,1726721381481,-500.0,0.00012999,2]
[338529461,1726721381501,-500.0,0.00012999,2]
[338529462,1726721381521,-937.4,0.00012999,2]
[338529463,1726721381542,-1812.66,0.00012999,2]
[338529464,1726721381562,-1437.14,0.00012999,2]
[338529465,1726721381582,-2339.37,0.00012999,2]
[338529466,1726721381602,-500.0,0.00012999,2]
[338529467,1726721381622,-1826.31,0.00012999,2]
[338529468,1726721381642,-500.0,0.00012999,2]
[338529469,1726721381668,-1580.63,0.00012999,2]
[338529470,1726721381688,-1833.27,0.00012999,2]
[338529471,1726721381709,-500.0,0.00012999,2]
[338529472,1726721381730,-500.0,0.00012999,2]
[338529473,1726721381750,-500.0,0.00012999,2]
[338529474,1726721381771,-1564.65,0.00012999,2]
[338529475,1726721381792,-151.0,0.00012999,2]
[338529476,1726721381814,-151.0,0.00012999,2]
[338529477,1726721381836,-151.0,0.00012999,2]
[338529478,1726721381858,-500.0,0.00012999,2]
[338529479,1726721381878,-616.44,0.00012999,2]
[338529480,1726721381900,-151.0,0.00012999,2]
[338529481,1726721381926,-151.0,0.00012999,2]
[338529482,1726721381948,-151.0,0.00012999,2]
[338529483,1726721381970,-208.8104,0.00012999,2]
[338529484,1726721381992,-208.8104,0.00012999,2]
[338529485,1726721382013,-208.8104,0.00012999,2]
[338529486,1726721382035,-500.0,0.00012999,2]
[338529487,1726721382058,-208.8104,0.00012999,2]
[338529488,1726721382080,-208.8104,0.00012999,2]
[338529489,1726721382103,-559.41,0.00012999,2]
[338529490,1726721382124,-208.8104,0.00012999,2]
[338529491,1726721382146,-500.0,0.00012999,2]
[338529492,1726721382172,-2673.38,0.00012999,2]
[338529493,1726721382193,-500.0,0.00012999,2]
[338529494,1726721382214,-1762.66,0.00012999,2]
[338529495,1726721382235,-1599.88,0.00012999,2]
[338529496,1726721382255,-151.0,0.00012999,2]
[338529497,1726721382275,-500.0,0.00012999,2]
[338529498,1726721382296,-500.0,0.00012999,2]
[338529499,1726721382316,-500.0,0.00012999,2]
[338529500,1726721382337,-151.0,0.00012999,2]
[338529501,1726721382358,-519.0,0.00012999,2]
[338529502,1726721382378,-500.0,0.00012999,2]
[338529503,1726721382399,-151.0,0.00012999,2]
[338529504,1726721382424,-151.0,0.00012999,2]
[338529505,1726721382444,-151.0,0.00012999,2]
[338529506,1726721382464,-571.39,0.00012999,2]
[338529507,1726721382484,-151.0,0.00012999,2]
[338529508,1726721382504,-151.0,0.00012999,2]
[338529509,1726721382525,-151.0,0.00012999,2]
[338529510,1726721382545,-151.0,0.00012999,2]
[338529511,1726721382565,-2220.04,0.00012999,2]
[338529512,1726721382586,-500.0,0.00012999,2]
[338529513,1726721382608,-703.06,0.00012999,2]
[338529514,1726721382630,-649.59,0.00012999,2]
[338529515,1726721382651,-1665.65,0.00012999,2]
[338529516,1726721382674,-649.59,0.00012999,2]
[338529517,1726721382695,-649.59,0.00012999,2]
[338529518,1726721382717,-649.59,0.00012999,2]
[338529519,1726721382737,-649.59,0.00012999,2]
[338529520,1726721382758,-649.59,0.00012999,2]
[338529521,1726721382779,-649.59,0.00012999,2]
[338529522,1726721382799,-649.59,0.00012999,2]
[338529523,1726721382823,-649.59,0.00012999,2]
[338529524,1726721382844,-1120.78,0.00012999,2]
[338529525,1726721382866,-649.59,0.00012999,2]
[338529526,1726721382887,-649.59,0.00012999,2]
[338529527,1726721382912,-649.59,0.00012999,2]
[338529528,1726721382933,-1166.36,0.00012999,2]
[338529529,1726721382954,-649.59,0.00012999,2]
[338529530,1726721382975,-649.59,0.00012999,2]
[338529531,1726721382996,-649.59,0.00012999,2]
[338529532,1726721383017,-649.59,0.00012999,2]
[338529533,1726721383038,-2180.37,0.00012999,2]
[338529534,1726721383059,-649.59,0.00012999,2]
[338529535,1726721383080,-649.59,0.00012999,2]
[338529536,1726721383100,-500.0,0.00012999,2]
[338529537,1726721383122,-153.0514248,0.00012999,2]
[338529538,1726721383142,-649.59,0.00012999,2]
[338529539,1726721383165,-649.59,0.00012999,2]
[338529540,1726721383186,-151.0,0.00012999,2]
[338529541,1726721383207,-649.59,0.00012999,2]
[338529542,1726721383228,-154.302201,0.00012999,2]
[338529543,1726721383249,-649.59,0.00012999,2]
[338529544,1726721383271,-649.59,0.00012999,2]
[338529545,1726721383292,-649.67358017,0.00012999,2]
[338529546,1726721383313,-2089.01,0.00012999,2]
[338529547,1726721383333,-500.0,0.00012999,2]
[338529548,1726721383354,-500.0,0.00012999,2]
[338529549,1726721383375,-151.0,0.00012999,2]
[338529550,1726721383395,-1364.88,0.00012999,2]
[338529551,1726721383416,-623.38,0.00012999,2]
[338529552,1726721383437,-151.0,0.00012999,2]
[338529553,1726721383458,-294.277128,0.00012999,2]
[338529554,1726721383479,-3011.4,0.00012999,2]
[338529555,1726721383499,-521.69,0.00012999,2]
[338529556,1726721383520,-500.0,0.00012999,2]
[338529557,1726721383541,-151.0,0.00012999,2]
[338529558,1726721383562,-151.0,0.00012999,2]
[338529559,1726721383583,-500.0,0.00012999,2]
[338529560,1726721383603,-151.0,0.00012999,2]
[338529561,1726721383624,-151.0,0.00012999,2]
[338529562,1726721383644,-500.0,0.00012999,2]
[338529563,1726721383667,-500.0,0.00012999,2]
[338529564,1726721383687,-500.0,0.00012999,2]
[338529565,1726721383708,-1429.86,0.00012999,2]
[338529566,1726721383729,-3343.07,0.00012999,2]
[338529567,1726721383750,-500.0,0.00012999,2]
[338529568,1726721383770,-519.03,0.00012999,2]
[338529569,1726721383791,-1495.04849,0.00012999,2]
[338529570,1726721383812,-1495.04849,0.00012999,2]
[338529571,1726721383837,-1495.04849,0.00012999,2]
[338529572,1726721383858,-1495.04849,0.00012999,2]
[338529573,1726721383879,-500.0,0.00012999,2]
[338529574,1726721383901,-500.0,0.00012999,2]
[338529575,1726721383925,-1495.04849,0.00012999,2]
[338529576,1726721383947,-1495.04849,0.00012999,2]
[338529577,1726721383968,-1495.04849,0.00012999,2]
[338529578,1726721383989,-1495.04849,0.00012999,2]
[338529579,1726721384009,-892.59,0.00012999,2]
[338529580,1726721384029,-1571.57,0.00012999,2]
[338529581,1726721384048,-1001.27,0.00012999,2]
[338529582,1726721384068,-996.35,0.00012999,2]
[338529583,1726721384087,-1453.38,0.00012999,2]
[338529584,1726721384107,-500.0,0.00012999,2]
[338529585,1726721384127,-929.84,0.00012999,2]
[338529586,1726721384146,-500.0,0.00012999,2]
[338529587,1726721384167,-2250.97,0.00012999,2]
[338529588,1726721384187,-500.0,0.00012999,2]
[338529589,1726721384206,-511.36,0.00012999,2]
[338529590,1726721384227,-3796.74,0.00012999,2]
[338529591,1726721384249,-500.0,0.00012999,2]
[338529592,1726721384270,-500.0,0.00012999,2]
[338529593,1726721384291,-842.51,0.00012999,2]
[338529594,1726721384312,-151.0,0.00012999,2]
[338529595,1726721384333,-1114.5,0.00012999,2]
[338529596,1726721384354,-151.0,0.00012999,2]
[338529597,1726721384376,-151.0,0.00012999,2]
[338529598,1726721384397,-151.0,0.00012999,2]
[338529599,1726721384419,-704.72,0.00012999,2]
[338529600,1726721384439,-500.0,0.00012999,2]
[338529601,1726721384700,-152.105275,0.00012999,2]
[338529602,1726721384722,-939.23,0.00012999,2]
[338529603,1726721384743,-747.48,0.00012999,2]
[338529604,1726721384765,-151.0,0.00012999,2]
[338529605,1726721384788,-155.386188,0.00012999,2]
[338529606,1726721384809,-151.0,0.00012999,2]
[338529607,1726721384834,-151.0,0.00012999,2]
[338529608,1726721384855,-151.0,0.00012999,2]
[338529609,1726721384876,-296.838296,0.00012999,2]
[338529610,1726721384899,-2319.89,0.00012999,2]
[338529611,1726721384923,-849.39,0.00012999,2]
[338529612,1726721384947,-1530.11,0.00012999,2]
[338529613,1726721384969,-500.0,0.00012999,2]
[338529614,1726721384992,-3358.66,0.00012999,2]
[338529615,1726721385014,-210.981478,0.00012999,2]
[338529616,1726721385035,-210.981478,0.00012999,2]
[338529617,1726721385056,-210.981478,0.00012999,2]